bitfinex-derivatives/quotes_SOLF0:USTF0_20260312
["timestamp","ask_amount","ask_price","bid_price","bid_amount"]
[1773320063040,3.88768122,87.249,87.181,3.82044283]
[1773320063534,14.20068122,87.249,87.196,3.82044283]
[1773320064937,14.20068122,87.249,87.19,2.44840887]
[1773320064938,3.88768122,87.249,87.203,3.82044283]
[1773320065143,10.312,87.257,87.203,3.82044283]
[1773320065948,10.312,87.257,87.209,14.13844283]
[1773320066243,10.312,87.257,87.166,20.71610566]
[1773320066244,2.44840887,87.27,87.211,3.82044283]
[1773320067345,10.31,87.276,87.234,10.315]
[1773320070342,43.3,87.295,87.197,13.76021652]
[1773320070343,2.44840887,87.27,87.211,3.82044283]
[1773320070643,2.44840887,87.26,87.211,3.82044283]
[1773320071649,2.44840887,87.26,87.217,10.317]
[1773320072048,2.44840887,87.27,87.218,3.82044283]
[1773320072251,3.88768122,87.273,87.218,3.82044283]
[1773320072449,3.88768122,87.273,87.221,3.82044283]
[1773320072954,3.88768122,87.288,87.238,3.82044283]
[1773320073452,2.44840887,87.28,87.238,3.82044283]
[1773320073943,2.44840887,87.28,87.242,10.314]
[1773320074342,2.44840887,87.28,87.238,3.82044283]
[1773320075245,3.88768122,87.277,87.238,3.82044283]
[1773320076149,3.88768122,87.269,87.225,3.82044283]
[1773320076349,3.88768122,87.259,87.202,3.82044283]
[1773320076741,3.88768122,87.259,87.21,10.318]
[1773320078446,3.88768122,87.259,87.212,14.13844283]
[1773320081249,10.312,87.258,87.212,14.13844283]
[1773320081748,14.19968122,87.258,87.212,14.13844283]
[1773320083945,3.84097095,87.239,87.185,3.95797658]
[1773320084146,3.84097095,87.239,87.165,20.71610566]
[1773320084147,3.84097095,87.219,87.172,3.95797658]
[1773320084350,2.44840887,87.21,87.172,3.95797658]
[1773320086451,2.44840887,87.2,87.165,10.323]
[1773320087250,3.84097095,87.209,87.165,10.323]
[1773320088751,14.15897095,87.208,87.165,10.323]
[1773320089658,3.84097095,87.207,87.165,10.323]
[1773320089853,2.45557897,87.2,87.165,10.323]
[1773320091961,2.45557897,87.22,87.174,3.82256843]
[1773320092258,3.84689669,87.221,87.174,3.82256843]
[1773320092458,6.30247566,87.22,87.174,3.82256843]
[1773320094058,6.30247566,87.22,87.18,10.321]
[1773320094461,2.45557897,87.21,87.174,3.82256843]
[1773320094964,2.45557897,87.21,87.176,10.322]
[1773320095260,3.84689669,87.219,87.176,10.322]
[1773320095460,2.45557897,87.23,87.176,3.82256843]
[1773320095662,3.84689669,87.229,87.176,3.82256843]
[1773320097061,10.316,87.228,87.181,10.321]
[1773320097265,3.84689669,87.227,87.181,10.321]
[1773320098368,2.45557897,87.22,87.181,10.321]
[1773320099567,3.84689669,87.209,87.163,3.82256843]
[1773320099867,2.45557897,87.2,87.163,3.82256843]
[1773320100164,3.84689669,87.209,87.163,3.82256843]
[1773320100758,3.84689669,87.209,87.165,10.323]
[1773320101158,3.84689669,87.225,87.17,2.45557897]
[1773320101358,2.45557897,87.23,87.171,3.82256843]
[1773320101562,6.30247566,87.24,87.181,3.82256843]
[1773320101763,192.85546609,87.27,87.204,3.82256843]
[1773320101764,2.45557897,87.25,87.204,3.82256843]
[1773320102566,3.84689669,87.254,87.204,3.82256843]
[1773320102872,3.84689669,87.254,87.212,10.318]
[1773320103270,2.45557897,87.25,87.212,10.318]
[1773320103869,3.84689669,87.254,87.221,10.316]
[1773320104073,3.84689669,87.254,87.204,3.82256843]
[1773320104876,3.84689669,87.254,87.214,10.317]
[1773320105274,2.45557897,87.25,87.204,3.82256843]
[1773320105678,2.45557897,87.25,87.213,10.317]
[1773320106672,192.30115706,87.293,87.221,10.316]
[1773320106673,6.30247566,87.27,87.221,10.316]
[1773320106976,6.30247566,87.27,87.222,3.82256843]
[1773320107172,2.45557897,87.26,87.222,3.82256843]
[1773320107378,2.45557897,87.26,87.223,10.316]
[1773320110074,3.84689669,87.249,87.202,3.82256843]
[1773320110883,3.84689669,87.249,87.203,10.319]
[1773320111377,2.45557897,87.24,87.203,10.319]
[1773320111583,3.84689669,87.239,87.193,10.32]
[1773320112382,3.84689669,87.239,87.199,10.319]
[1773320113882,2.45557897,87.24,87.207,3.82256843]
[1773320114083,2.45557897,87.25,87.207,3.82256843]
[1773320114279,6.30247566,87.25,87.207,3.82256843]
[1773320114984,10.313,87.249,87.207,3.82256843]
[1773320115187,2.45557897,87.24,87.207,3.82256843]
[1773320117486,2.45557897,87.25,87.207,3.82256843]
[1773320117784,43.3,87.256,87.207,3.82256843]
[1773320118384,2.45557897,87.25,87.207,3.82256843]
[1773320118783,2.45557897,87.24,87.194,3.82256843]
[1773320119884,2.45557897,87.24,87.201,14.14156843]
[1773320120084,14.15989669,87.249,87.201,14.14156843]
[1773320120391,3.84689669,87.249,87.219,10.317]
[1773320120782,3.84689669,87.249,87.202,4.015831]
[1773320120985,10.314,87.243,87.205,10.318]
[1773320121189,2.45557897,87.24,87.205,10.318]
[1773320121886,3.84689669,87.249,87.208,4.015831]
[1773320122684,43.3,87.256,87.216,10.317]
[1773320123982,2.45557897,87.25,87.209,10.318]
[1773320124179,3.87206614,87.249,87.208,4.015831]
[1773320124387,10.314,87.246,87.208,4.015831]
[1773320124787,3.87206614,87.245,87.208,4.015831]
[1773320125890,3.87206614,87.245,87.208,14.333831]
[1773320126892,10.314,87.241,87.208,4.015831]
[1773320127094,3.87206614,87.245,87.208,4.015831]
[1773320128898,3.87206614,87.245,87.211,10.318]
[1773320129797,3.87206614,87.245,87.216,10.317]
[1773320134501,2.45557897,87.25,87.216,10.317]
[1773320135004,43.3,87.253,87.221,4.015831]
[1773320135896,43.3,87.253,87.225,10.316]
[1773320137398,3.87206614,87.249,87.209,4.015831]
[1773320138899,3.87206614,87.249,87.21,10.318]
[1773320139095,2.45557897,87.24,87.209,4.015831]
[1773320139301,3.87206614,87.239,87.201,13.76021652]
[1773320139707,12.77157897,87.23,87.201,13.76021652]
[1773320139896,2.45557897,87.22,87.188,13.76021652]
[1773320140208,2.45557897,87.22,87.187,4.015831]
[1773320140209,2.45557897,87.22,87.189,13.76021652]
[1773320140998,2.45557897,87.22,87.19,10.32]
[1773320141202,2.45557897,87.22,87.19,24.08021652]
[1773320141909,2.45557897,87.22,87.19,10.32]
[1773320142104,2.45557897,87.22,87.19,24.08021652]
[1773320142708,2.45557897,87.22,87.19,28.09604752]
[1773320142902,2.45557897,87.22,87.194,10.32]
[1773320143207,43.3,87.229,87.194,10.32]
[1773320143806,2.45557897,87.23,87.199,10.319]
[1773320144106,43.3,87.229,87.2,3.89544876]
[1773320144909,43.3,87.229,87.201,10.319]
[1773320145211,43.3,87.248,87.209,3.89544876]
[1773320145607,43.3,87.248,87.212,17.65566528]
[1773320145909,43.3,87.248,87.214,13.76021652]
[1773320146105,43.3,87.248,87.216,13.76021652]
[1773320146605,2.45557897,87.25,87.216,13.76021652]
[1773320146606,2.45557897,87.26,87.217,3.89544876]
[1773320146806,43.3,87.259,87.218,3.89544876]
[1773320147207,10.312,87.258,87.218,14.21244876]
[1773320147405,43.3,87.259,87.219,3.89544876]
[1773320147608,13.04384879,87.279,87.242,13.76021652]
[1773320147809,13.04384879,87.279,87.243,10.314]
[1773320148109,13.04384879,87.279,87.208,28.22054113]
[1773320148110,13.04384879,87.279,87.239,13.76021652]
[1773320148306,2.45134096,87.27,87.235,13.76021652]
[1773320148509,13.04384879,87.279,87.236,13.76021652]
[1773320148712,13.04384879,87.279,87.237,13.76021652]
[1773320149012,13.04384879,87.279,87.22,2.45134096]
[1773320149013,13.04384879,87.279,87.235,13.76021652]
[1773320149312,13.04384879,87.279,87.234,13.76021652]
[1773320149911,13.04384879,87.279,87.243,10.314]
[1773320150105,13.01726726,87.269,87.232,13.76021652]
[1773320151110,13.01726726,87.269,87.235,10.315]
[1773320151613,13.01726726,87.269,87.231,13.76021652]
[1773320151814,13.05483771,87.259,87.223,13.76021652]
[1773320152012,13.05483771,87.257,87.22,13.76021652]
[1773320152410,13.05483771,87.257,87.216,13.76021652]
[1773320152814,13.05483771,87.257,87.217,13.76021652]
[1773320153816,13.05483771,87.257,87.216,13.76021652]
[1773320154015,13.05483771,87.257,87.217,13.76021652]
[1773320154214,43.3,87.256,87.217,13.76021652]
[1773320154413,43.3,87.256,87.223,10.316]
[1773320155413,15.40216383,87.27,87.229,10.316]
[1773320155614,43.3,87.269,87.229,10.316]
[1773320156206,43.3,87.269,87.235,10.315]
[1773320160918,43.3,87.268,87.235,10.315]
[1773320161115,43.3,87.267,87.242,10.314]
[1773320163618,43.3,87.271,87.242,10.314]
[1773320163823,12.93484011,87.283,87.23,2.45134096]
[1773320164017,43.3,87.285,87.243,13.76021652]
[1773320164212,12.93494216,87.297,87.242,13.76021652]
[1773320164419,12.93494216,87.295,87.253,10.313]
[1773320165323,12.93494216,87.295,87.26,10.312]
[1773320165620,12.93494216,87.295,87.247,13.76021652]
[1773320165811,12.93494216,87.295,87.246,13.76021652]
[1773320166215,12.93494216,87.295,87.258,10.312]
[1773320166924,12.94188196,87.289,87.25,10.313]
[1773320168013,12.94188196,87.287,87.25,10.313]
[1773320169725,12.94188196,87.287,87.242,10.314]
[1773320170023,12.96583716,87.269,87.231,13.76021652]
[1773320170223,12.96583716,87.269,87.23,13.76021652]
[1773320170422,43.3,87.268,87.23,13.76021652]
[1773320170820,12.96507467,87.267,87.23,13.76021652]
[1773320171020,2.45134096,87.26,87.221,13.76021652]
[1773320171222,2.45134096,87.26,87.222,13.76021652]
[1773320172021,2.45134096,87.26,87.227,10.316]
[1773320172825,56.26146211,87.259,87.22,10.317]
[1773320174721,12.96154438,87.258,87.22,10.317]
[1773320178231,12.96154438,87.258,87.22,24.07721652]
[1773320180129,12.96154438,87.258,87.226,10.316]
[1773320180332,12.96154438,87.258,87.186,28.22054113]
[1773320180333,12.96154438,87.258,87.221,13.76021652]
[1773320182035,12.96154438,87.258,87.232,10.315]
[1773320183436,12.96154438,87.258,87.224,10.316]
[1773320184135,12.96154438,87.258,87.221,13.76021652]
[1773320184136,12.95446718,87.249,87.22,13.76021652]
[1773320184437,15.40580814,87.24,87.209,13.76021652]
[1773320184734,15.40580814,87.24,87.205,13.76021652]
[1773320185036,12.95446718,87.24,87.205,13.76021652]
[1773320185236,2.45134096,87.25,87.216,10.317]
[1773320185437,12.91201309,87.269,87.21,2.45134096]
[1773320185631,56.21201309,87.268,87.21,2.45134096]
[1773320185939,43.3,87.267,87.212,13.76021652]
[1773320186132,56.21201309,87.267,87.213,13.76021652]
[1773320186334,12.91201309,87.266,87.213,13.76021652]
[1773320186935,12.91201309,87.266,87.23,10.315]
[1773320188230,12.91201309,87.266,87.236,10.315]
[1773320188639,12.91201309,87.266,87.225,13.76021652]
[1773320189140,12.91201309,87.266,87.222,13.76021652]
[1773320189641,12.91201309,87.266,87.235,10.315]
[1773320189837,12.91201309,87.266,87.222,13.76021652]
[1773320190139,12.91201309,87.266,87.223,13.76021652]
[1773320190339,12.91201309,87.266,87.228,10.316]
[1773320190535,12.91201309,87.266,87.223,13.76021652]
[1773320190735,12.91869289,87.259,87.218,13.76021652]
[1773320190931,12.91869289,87.259,87.217,13.76021652]
[1773320191132,12.91869289,87.259,87.218,13.76021652]
[1773320191538,2.45134096,87.25,87.217,13.76021652]
[1773320191834,12.91869289,87.259,87.221,10.316]
[1773320194447,12.91869289,87.259,87.224,13.76021652]
[1773320196142,12.91869289,87.259,87.223,13.76021652]
[1773320196344,12.91869289,87.259,87.224,13.76021652]
[1773320196847,12.91869289,87.259,87.221,24.07621652]
[1773320197048,12.91869289,87.259,87.221,10.316]
[1773320197844,12.91157123,87.258,87.221,10.316]
[1773320198044,15.36291219,87.25,87.221,10.316]
[1773320198545,12.91157123,87.25,87.221,10.316]
[1773320198947,12.91157123,87.25,87.22,13.76021652]
[1773320199850,12.91157123,87.25,87.219,13.76021652]
[1773320200543,12.91157123,87.25,87.215,10.317]
[1773320200741,15.36291219,87.25,87.215,10.317]
[1773320200950,12.91157123,87.25,87.209,13.76021652]
[1773320201248,6.02863235,87.229,87.175,21.3226039]
[1773320201544,2.45134096,87.23,87.166,20.646]
[1773320201545,6.02863235,87.227,87.173,21.3226039]
[1773320201751,2.45134096,87.22,87.19,10.32]
[1773320201946,6.02863235,87.219,87.17,21.3226039]
[1773320202344,6.02863235,87.219,87.169,21.3226039]
[1773320202548,6.02863235,87.219,87.189,10.32]
[1773320203052,6.02863235,87.219,87.164,21.3226039]
[1773320203240,6.02863235,87.219,87.187,10.321]
[1773320203447,43.3,87.228,87.163,21.3226039]
[1773320203641,43.3,87.228,87.17,2.45134096]
[1773320204445,49.37237424,87.228,87.17,2.45134096]
[1773320204649,6.07237424,87.227,87.17,2.45134096]
[1773320205152,6.07237424,87.227,87.185,10.321]
[1773320205751,2.45134096,87.22,87.185,10.321]
[1773320205945,8.48884143,87.22,87.185,10.321]
[1773320206148,6.03750047,87.219,87.185,10.321]
[1773320206750,43.3,87.228,87.17,2.45134096]
[1773320206956,43.3,87.228,87.18,2.45134096]
[1773320207651,43.3,87.228,87.194,10.32]
[1773320211951,43.3,87.228,87.2,10.319]
[1773320212756,43.3,87.228,87.178,21.3226039]
[1773320212757,43.3,87.228,87.206,10.318]
[1773320213152,2.45396233,87.24,87.206,10.318]
[1773320213957,2.45396233,87.24,87.212,10.318]
[1773320216566,6.06630218,87.239,87.205,10.318]
[1773320216866,6.06630218,87.239,87.182,21.3226039]
[1773320217068,6.06630218,87.239,87.181,21.3226039]
[1773320217663,6.06630218,87.239,87.205,10.318]
[1773320219960,6.07422248,87.229,87.199,10.319]
[1773320220165,6.07422248,87.229,87.18,21.3226039]
[1773320220166,2.45396233,87.22,87.18,21.3226039]
[1773320220369,6.07422248,87.219,87.176,21.3226039]
[1773320220568,6.07422248,87.219,87.175,21.3226039]
[1773320221873,6.07422248,87.219,87.186,10.321]
[1773320222373,6.07588643,87.209,87.171,21.3226039]
[1773320222570,6.07588643,87.209,87.167,21.3226039]
[1773320223270,6.07588643,87.209,87.166,21.3226039]
[1773320223474,6.07588643,87.209,87.164,21.3226039]
[1773320223676,6.07588643,87.209,87.165,21.3226039]
[1773320224269,6.07588643,87.209,87.178,10.322]
[1773320227471,6.07588643,87.209,87.164,21.3226039]
[1773320227679,6.07588643,87.209,87.119,34.59046852]
[1773320227680,6.06286397,87.199,87.149,21.3226039]
[1773320227978,6.06286397,87.199,87.148,21.3226039]
[1773320228873,6.06925199,87.189,87.143,21.3226039]
[1773320229073,6.06925199,87.189,87.142,21.3226039]
[1773320229775,6.06925199,87.189,87.143,21.3226039]
[1773320230172,43.32,87.226,87.15,2.45396233]
[1773320230173,2.45396233,87.21,87.15,2.45396233]
[1773320230570,6.06925199,87.209,87.151,21.3226039]
[1773320230877,6.06925199,87.209,87.16,2.45396233]
[1773320231074,6.06925199,87.209,87.163,14.15122603]
[1773320231968,6.06925199,87.209,87.174,10.322]
[1773320235179,6.06925199,87.209,87.167,10.323]
[1773320236377,6.06925199,87.209,87.173,10.322]
[1773320236577,6.0638938,87.221,87.167,14.15122603]
[1773320236776,6.06231509,87.219,87.168,14.15122603]
[1773320237171,6.06231509,87.219,87.188,10.32]
[1773320242182,6.06231509,87.219,87.182,10.321]
[1773320244183,6.06231509,87.219,87.187,10.32]
[1773320248090,6.06231509,87.219,87.185,10.321]
[1773320248291,2.45396233,87.21,87.179,14.18377002]
[1773320248688,2.45396233,87.21,87.174,14.18377002]
[1773320249190,2.45396233,87.21,87.173,24.50577002]
[1773320250190,6.06231509,87.219,87.174,14.18377002]
[1773320250490,6.06231509,87.219,87.175,14.18377002]
[1773320250680,6.06231509,87.219,87.15,2.45396233]
[1773320250681,6.06231509,87.219,87.174,14.18377002]
[1773320250879,6.06231509,87.219,87.175,14.18377002]
[1773320251891,6.06231509,87.219,87.184,10.321]
[1773320252893,6.06231509,87.219,87.191,10.32]
[1773320254091,6.08355073,87.229,87.197,10.319]
[1773320261904,2.45396233,87.23,87.191,14.18377002]
[1773320262109,8.52699845,87.24,87.203,10.319]
[1773320264913,6.08084484,87.239,87.203,10.319]
[1773320265315,16.39584484,87.237,87.199,14.18377002]
[1773320265610,6.08084484,87.237,87.199,14.18377002]
[1773320266005,6.08084484,87.237,87.207,10.318]
[1773320268514,2.45369351,87.24,87.207,10.318]
[1773320269416,6.08080734,87.248,87.213,10.317]
[1773320272216,2.45369351,87.24,87.213,10.317]
[1773320273111,6.08080734,87.248,87.213,10.317]
[1773320278116,2.45369351,87.25,87.224,10.316]
[1773320278416,6.08528082,87.259,87.224,10.316]
[1773320282712,8.53068201,87.27,87.23,10.315]
[1773320283114,10.311,87.268,87.23,10.315]
[1773320283319,6.0769885,87.259,87.214,14.18377002]
[1773320283522,6.0769885,87.249,87.212,14.18377002]
[1773320284621,2.45369351,87.23,87.203,14.18377002]
[1773320284822,8.52642608,87.23,87.202,14.18377002]
[1773320285023,6.07273257,87.219,87.187,14.18377002]
[1773320285428,2.45369351,87.21,87.188,10.32]
[1773320286527,6.07273257,87.219,87.188,10.32]
[1773320288430,6.07273257,87.219,87.182,14.18377002]
[1773320288620,2.45369351,87.21,87.18,10.321]
[1773320293032,6.07273257,87.219,87.18,10.321]
[1773320302639,6.0673852,87.209,87.18,10.321]
[1773320305140,8.51849311,87.2,87.172,10.322]
[1773320306342,6.0647996,87.2,87.172,10.322]
[1773320306641,6.0647996,87.2,87.167,14.18377002]
[1773320306838,6.0647996,87.2,87.161,14.18377002]
[1773320307342,6.0647996,87.2,87.14,2.45369351]
[1773320307343,6.05033678,87.198,87.156,14.18377002]
[1773320307737,6.05033678,87.198,87.155,14.18377002]
[1773320308845,6.05033678,87.198,87.16,10.324]
[1773320309544,6.05033678,87.198,87.166,10.323]
[1773320309746,10.318,87.206,87.166,10.323]
[1773320310340,6.06873442,87.217,87.16,2.45369351]
[1773320310544,6.06873442,87.217,87.165,14.18377002]
[1773320311035,2.45369351,87.22,87.189,10.32]
[1773320311235,6.01698149,87.229,87.189,10.32]
[1773320312849,10.316,87.228,87.189,10.32]
[1773320313750,16.36217666,87.228,87.189,10.32]
[1773320314548,6.04617666,87.227,87.189,10.32]
[1773320315547,2.45369351,87.23,87.195,10.32]
[1773320322547,6.04555761,87.238,87.201,10.319]
[1773320322742,2.45369351,87.24,87.201,10.319]
[1773320323145,2.45369351,87.24,87.158,20.648]
[1773320323146,2.45369351,87.26,87.206,14.18377002]
[1773320323350,2.45369351,87.26,87.211,14.18377002]
[1773320323555,2.45369351,87.26,87.212,14.18377002]
[1773320323852,2.45369351,87.26,87.227,10.316]
[1773320324054,8.48954286,87.26,87.227,10.316]
[1773320324956,6.02271698,87.259,87.227,10.316]
[1773320325356,2.45369351,87.25,87.22,10.317]
[1773320327558,2.45305047,87.25,87.22,10.317]
[1773320331759,10.312,87.256,87.209,14.18377002]
[1773320332059,2.45305047,87.25,87.209,14.18377002]
[1773320332255,2.45305047,87.25,87.208,14.18377002]
[1773320332960,2.45305047,87.25,87.219,10.317]
[1773320334863,6.1082763,87.258,87.225,10.316]
[1773320335761,6.1082763,87.258,87.218,10.317]
[1773320336256,2.45305047,87.26,87.224,10.316]
[1773320336257,49.4262429,87.257,87.224,10.316]
[1773320336659,6.1262429,87.256,87.224,10.316]
[1773320337161,2.45305047,87.25,87.215,10.317]
[1773320337962,6.15249653,87.249,87.215,10.317]
[1773320339963,6.15249653,87.249,87.221,10.316]
[1773320340166,43.3,87.257,87.221,10.316]
[1773320340566,49.46054576,87.257,87.221,10.316]
[1773320341961,6.16054576,87.257,87.221,10.316]
[1773320342157,43.32,87.257,87.221,10.316]
[1773320342366,43.32,87.257,87.21,14.18377002]
[1773320343266,43.32,87.257,87.209,14.18377002]
[1773320343563,10.31,87.278,87.216,14.18377002]
[1773320343867,6.13379793,87.277,87.216,14.18377002]
[1773320344369,6.13379793,87.277,87.215,14.18377002]
[1773320344564,43.32,87.276,87.237,10.315]
[1773320345066,43.32,87.276,87.195,20.64]
[1773320345067,43.32,87.276,87.246,10.314]
[1773320346270,43.32,87.276,87.239,10.314]
[1773320346271,6.11588682,87.275,87.239,10.314]
[1773320346465,6.11588682,87.269,87.22,14.18377002]
[1773320346673,2.45305047,87.25,87.223,10.316]
[1773320348470,6.11588682,87.259,87.223,10.316]
[1773320352975,2.45305047,87.26,87.229,10.316]
[1773320353269,6.1190323,87.279,87.223,14.18377002]
[1773320354272,6.1190323,87.279,87.22,2.45305047]
[1773320354273,6.1190323,87.279,87.224,14.18377002]
[1773320354864,6.1190323,87.279,87.246,10.314]
[1773320355471,6.07473831,87.269,87.238,10.314]
[1773320355678,2.45305047,87.26,87.215,14.18377002]
[1773320356174,2.45305047,87.26,87.203,43.32]
[1773320356175,2.45305047,87.26,87.216,14.18377002]
[1773320357073,2.45305047,87.26,87.225,10.316]
[1773320357876,8.53986997,87.26,87.225,10.316]
[1773320358772,6.08731613,87.259,87.216,10.317]
[1773320358977,6.08731613,87.249,87.216,10.317]
[1773320361576,43.32,87.261,87.224,10.316]
[1773320362276,2.45305047,87.27,87.218,14.18377002]
[1773320362581,8.53720136,87.27,87.218,14.18377002]
[1773320362774,6.08179408,87.269,87.218,14.18377002]
[1773320362978,6.08179408,87.269,87.239,10.314]
[1773320363178,6.08179408,87.269,87.219,14.18377002]
[1773320363983,6.08179408,87.269,87.232,10.315]
[1773320364384,6.08179408,87.269,87.2,2.45305047]
[1773320364385,6.08179408,87.269,87.219,14.18377002]
[1773320364587,2.45305047,87.26,87.219,14.18377002]
[1773320364786,2.45305047,87.26,87.225,10.316]
[1773320367187,2.45305047,87.26,87.225,24.49977002]
[1773320369792,2.45305047,87.26,87.23,10.315]
[1773320370791,6.08179408,87.269,87.23,10.315]
[1773320370992,2.45305047,87.26,87.23,10.315]
[1773320374191,2.45305047,87.26,87.23,24.49877002]
[1773320374591,2.45305047,87.26,87.23,10.315]
[1773320375393,2.45305047,87.26,87.225,14.18377002]
[1773320375695,6.05082744,87.249,87.22,14.18377002]
[1773320375894,6.05082744,87.249,87.219,14.18377002]
[1773320376394,2.45305047,87.24,87.21,14.18377002]
[1773320376692,2.45305047,87.24,87.209,14.18377002]
[1773320376893,2.45305047,87.24,87.214,10.317]
[1773320381692,6.05082744,87.249,87.214,10.317]
[1773320381891,2.45305047,87.25,87.219,10.317]
[1773320384892,16.35924979,87.258,87.219,10.317]
[1773320385097,6.04724979,87.257,87.219,10.317]
[1773320386594,6.04724979,87.257,87.225,10.316]
[1773320388799,6.04897457,87.269,87.231,10.315]
[1773320389101,6.04897457,87.267,87.224,14.18377002]
[1773320390201,6.04897457,87.267,87.225,14.18377002]
[1773320390404,2.45218476,87.26,87.225,14.18377002]
[1773320395612,2.45218476,87.26,87.226,10.316]
[1773320395911,6.0642114,87.259,87.226,10.316]
[1773320398317,6.0642114,87.259,87.226,24.49977002]
[1773320399111,2.45218476,87.26,87.233,10.315]
[1773320399709,2.45218476,87.26,87.233,24.49877002]
[1773320400114,2.45218476,87.26,87.233,10.315]
[1773320400413,2.45218476,87.28,87.235,14.18377002]
[1773320400619,43.32,87.279,87.237,14.18377002]
[1773320401120,49.35904514,87.279,87.237,14.18377002]
[1773320401320,6.03904514,87.289,87.239,14.18377002]
[1773320401520,6.03904514,87.289,87.243,14.18377002]
[1773320401720,6.03904514,87.289,87.25,14.18377002]
[1773320402123,6.03904514,87.269,87.245,14.18377002]
[1773320402419,6.03904514,87.269,87.233,14.18377002]
[1773320402820,6.03904514,87.269,87.234,10.315]
[1773320403018,6.03904514,87.269,87.235,14.18377002]
[1773320403320,6.03904514,87.269,87.234,10.315]
[1773320403715,2.45218476,87.27,87.234,10.315]
[1773320406422,8.4778865,87.27,87.231,14.18377002]
[1773320406622,8.4778865,87.27,87.226,10.316]
[1773320406623,2.45218476,87.26,87.23,14.18377002]
[1773320406816,2.45218476,87.26,87.226,24.49977002]
[1773320407217,6.02570174,87.269,87.226,24.49977002]
[1773320407414,2.45218476,87.27,87.236,14.18377002]
[1773320407614,8.47057757,87.28,87.241,14.18377002]
[1773320407818,8.47057757,87.28,87.244,10.314]
[1773320408015,2.45218476,87.28,87.244,10.314]
[1773320408716,2.45218476,87.26,87.23,14.18377002]
[1773320408920,2.45218476,87.26,87.229,14.18377002]
[1773320411424,6.01839281,87.269,87.232,10.315]
[1773320414121,6.01839281,87.269,87.219,21.27565503]
[1773320414122,8.45912265,87.28,87.239,10.314]
[1773320414428,8.45912265,87.28,87.223,21.27565503]
[1773320414429,6.00693789,87.28,87.24,14.18377002]
[1773320414628,8.45912265,87.28,87.24,14.18377002]
[1773320415327,5.96087359,87.289,87.25,10.313]
[1773320415529,5.96087359,87.289,87.228,21.27565503]
[1773320415530,5.96087359,87.289,87.238,14.18377002]
[1773320415722,2.45218476,87.28,87.238,14.18377002]
[1773320416229,2.45218476,87.28,87.237,14.18377002]
[1773320416935,2.45218476,87.28,87.242,10.314]
[1773320417823,5.93955831,87.277,87.242,10.314]
[1773320418333,2.45218476,87.28,87.242,10.314]
[1773320418532,5.93955831,87.287,87.242,10.314]
[1773320418835,2.45218476,87.28,87.242,10.314]
[1773320419836,2.45218476,87.28,87.248,10.313]
[1773320424741,8.42961179,87.28,87.248,10.313]
[1773320425135,10.31,87.278,87.238,10.314]
[1773320425438,8.42961179,87.28,87.235,14.18377002]
[1773320425636,8.42961179,87.28,87.25,10.313]
[1773320426839,5.97742703,87.28,87.25,10.313]
[1773320427839,8.42961179,87.28,87.25,10.313]
[1773320429745,8.42961179,87.28,87.244,10.314]
[1773320429945,10.31,87.277,87.244,10.314]
[1773320431440,5.97569757,87.276,87.237,10.315]
[1773320431644,5.97569757,87.269,87.237,10.315]
[1773320431850,5.97569757,87.269,87.236,14.18377002]
[1773320432146,2.45218476,87.26,87.227,14.18377002]
[1773320432949,2.45218476,87.26,87.231,10.315]
[1773320434152,8.42450854,87.26,87.227,14.18377002]
[1773320434646,8.42450854,87.26,87.228,10.316]
[1773320435151,8.42450854,87.26,87.228,24.49977002]
[1773320435451,5.97232378,87.26,87.234,10.315]
[1773320438448,5.97232378,87.26,87.21,2.45218476]
[1773320438449,5.97232378,87.26,87.239,10.314]
[1773320438655,2.45218476,87.27,87.239,10.314]
[1773320439051,5.97585159,87.269,87.239,10.314]
[1773320440056,5.97585159,87.269,87.233,10.315]
[1773320440450,10.311,87.267,87.233,10.315]
[1773320441456,5.97585159,87.269,87.233,10.315]
[1773320444459,12.71089454,87.322,87.231,14.18377002]
[1773320444660,6.0273518,87.299,87.25,14.18377002]
[1773320444960,6.0273518,87.299,87.251,14.18377002]
[1773320445154,6.0273518,87.299,87.25,14.18377002]
[1773320445853,6.02729209,87.296,87.25,14.18377002]
[1773320446054,2.45218476,87.29,87.25,14.18377002]